lending/lending_fUSD_20250408
["ID","MTS","AMOUNT","RATE_DAILY","PERIOD"]
[357528693,1744131038719,-9685.07318206,0.00024771,2]
[357528694,1744131038728,-540.28317374,0.0002479,2]
[357528695,1744131038738,-151.52,0.0002479,2]
[357528696,1744131038748,-151.52,0.0002479,2]
[357528697,1744131038759,-300.0,0.00024799,10]
[357528698,1744131038768,-150.0,0.00024799,2]
[357528699,1744131038778,-151.0,0.000248,7]
[357528700,1744131038788,-151.0,0.000248,7]
[357528701,1744131038799,-173.933713,0.000248,7]
[357528702,1744131038808,-151.0,0.000248,7]
[357528703,1744131038818,-219.412904,0.000248,7]
[357528704,1744131038828,-151.835865,0.000248,7]
[357528705,1744131038838,-151.0,0.000248,7]
[357528706,1744131038847,-151.996567,0.000248,7]
[357528707,1744131038857,-151.0,0.000248,7]
[357528708,1744131038868,-151.0,0.000248,7]
[357528709,1744131038878,-151.0,0.000248,7]
[357528710,1744131038887,-151.0,0.000248,7]
[357528711,1744131038897,-151.0,0.000248,7]
[357528712,1744131038907,-151.0,0.000248,7]
[357528713,1744131038917,-273.841967,0.000248,7]
[357528714,1744131038927,-223.259058,0.000248,7]
[357528715,1744131038937,-151.0,0.000248,7]
[357528716,1744131038948,-151.0,0.000248,7]
[357528717,1744131038959,-500.0,0.000248,2]
[357528718,1744131038970,-151.0,0.000248,7]
[357528719,1744131038981,-151.0,0.000248,7]
[357528720,1744131038992,-159.75984,0.000248,2]
[357528721,1744131039008,-26058.06413111,0.000248,2]
[357528722,1744131039023,-34886.97599999,0.000248,2]
[357528723,1744131039050,-19490.45249365,0.000248,2]
[357528724,1744131039062,-9037.18121336,0.000248,2]
[357528725,1744131039086,-4137.04289259,0.000248,2]
[357528744,1744131039929,-1412.5867245,0.000248,2]
[357528745,1744131039941,-761.29182804,0.000248,2]
[357528746,1744131040146,-38750.00000001,0.000248,2]
[357528747,1744131040157,-3899.47023752,0.000248,2]
[357528772,1744131042882,-8077.05074814,0.000248,2]
[357528773,1744131042896,-1059.61056846,0.000248,2]
[357528861,1744131060001,-136221.18878863,0.000248,2]
[357528862,1744131060012,-503.45970058,0.0002485,2]
[357528863,1744131060021,-268.97807755,0.0002485,2]
[357528864,1744131060031,-544.69933015,0.0002485,2]
[357528865,1744131060041,-507.54888109,0.0002485,2]
[357528866,1744131060050,-620.06654318,0.0002485,2]
[357528867,1744131060060,-500.0,0.0002485,2]
[357528868,1744131060074,-500.0,0.0002485,2]
[357528869,1744131060084,-500.0,0.0002485,2]
[357528870,1744131060098,-471.25576975,0.0002485,2]
[357528871,1744131060108,-500.0,0.0002485,2]
[357528872,1744131060118,-500.0,0.0002485,2]
[357528873,1744131060127,-502.81964176,0.0002485,2]
[357528874,1744131060136,-151.52,0.0002489,2]
[357528875,1744131060147,-151.0,0.000249,7]
[357528876,1744131060157,-151.0,0.000249,7]
[357528877,1744131060166,-151.0,0.000249,7]
[357528878,1744131060175,-151.0,0.000249,7]
[357528879,1744131060185,-151.0,0.000249,7]
[357528880,1744131060194,-151.0,0.000249,7]
[357528881,1744131060204,-151.0,0.000249,7]
[357528882,1744131060213,-1400.0,0.000249,9]
[357528883,1744131060223,-219073.42832,0.000249,2]
[357528884,1744131060233,-816.73580388,0.00024912,2]
[357528885,1744131060243,-10953.671416,0.00025442,2]
[357528886,1744131060252,-377.39,0.00025443,2]
[357528887,1744131060262,-500.0,0.00025452,2]
[357528888,1744131060272,-731.65736669,0.00025452,2]
[357528889,1744131060281,-1000.0,0.00025687,2]
[357528890,1744131060291,-2000.0,0.00025714,4]
[357528891,1744131060300,-9685.07318206,0.00025745,2]
[357528892,1744131060309,-10953.671416,0.00025776,2]
[357528893,1744131060318,-9999.99,0.00025786,2]
[357528894,1744131060327,-1123.53,0.00025786,2]
[357528895,1744131060337,-9999.99,0.00025786,2]
[357528896,1744131060347,-816.73580388,0.00025914,2]
[357528897,1744131060357,-10953.671416,0.00025928,2]
[357528898,1744131060367,-151.0,0.00025938,7]
[357528899,1744131060377,-151.0,0.00025938,7]
[357528900,1744131060386,-151.0,0.00025938,7]
[357528901,1744131060398,-164.506402,0.00025938,7]
[357528902,1744131060407,-151.0,0.00025938,7]
[357528903,1744131060417,-151.0,0.00025938,7]
[357528904,1744131060427,-1664.0,0.00026135,2]
[357528905,1744131060436,-150.0,0.00026169,2]
[357528906,1744131060445,-154.32081203,0.00026172,2]
[357528907,1744131060455,-151.0,0.00026581,7]
[357528908,1744131060464,-151.0,0.00026581,7]
[357528909,1744131060474,-234.582386,0.00026592,7]
[357528910,1744131060483,-151.0,0.00026592,7]
[357528911,1744131060492,-180.363036,0.00026592,7]
[357528912,1744131060502,-151.0,0.00026592,7]
[357528913,1744131060512,-9685.07318206,0.00026719,2]
[357528914,1744131060521,-259.2,0.00026849,2]
[357528915,1744131060531,-198.28,0.00026849,2]
[357528916,1744131060540,-166.22,0.00026849,2]
[357528917,1744131060550,-2100.0,0.000269,9]
[357528918,1744131060559,-175.98,0.00026903,2]
[357528919,1744131060569,-169.86254501,0.00026908,2]
[357528920,1744131060579,-816.73580388,0.00026916,2]
[357528921,1744131060588,-2000.0,0.00027143,4]
[357528922,1744131060597,-10953.671416,0.0002732,2]
[357528923,1744131060607,-151.52,0.0002732,2]
[357528924,1744131060617,-151.0,0.0002733,7]
[357528925,1744131060626,-151.0,0.0002733,7]
[357528926,1744131060636,-1000.0,0.0002733,14]
[357528927,1744131060645,-1000.0,0.0002733,14]
[357528928,1744131060654,-1000.0,0.0002733,14]
[357528929,1744131060664,-1000.0,0.0002733,14]
[357528930,1744131060673,-1000.0,0.0002733,14]
[357528931,1744131060682,-1000.0,0.0002733,14]
[357528932,1744131060692,-1000.0,0.0002733,14]
[357528933,1744131060701,-1000.0,0.0002733,14]
[357528934,1744131060710,-1000.0,0.0002733,14]
[357528935,1744131060720,-1000.0,0.0002733,14]
[357528936,1744131060729,-1000.0,0.0002733,14]
[357528937,1744131060738,-1000.0,0.0002733,14]
[357528938,1744131060748,-1000.0,0.0002733,14]
[357528939,1744131060757,-1000.0,0.0002733,14]
[357528940,1744131060770,-1000.0,0.0002733,14]
[357528941,1744131060779,-1000.0,0.0002733,14]
[357528942,1744131060789,-1000.0,0.0002733,14]
[357528943,1744131060798,-1000.0,0.0002733,14]
[357528944,1744131060808,-1000.0,0.0002733,14]
[357528945,1744131060817,-1000.0,0.0002733,14]
[357528946,1744131060827,-1000.0,0.0002733,14]
[357528947,1744131060836,-1000.0,0.0002733,14]
[357528948,1744131060845,-1000.0,0.0002733,14]
[357528949,1744131060854,-1000.0,0.0002733,14]
[357528950,1744131060864,-1000.0,0.0002733,14]
[357528951,1744131060873,-1000.0,0.0002733,14]
[357528952,1744131060883,-1000.0,0.0002733,14]
[357528953,1744131060894,-1000.0,0.0002733,14]
[357528954,1744131060903,-1000.0,0.0002733,14]
[357528955,1744131060912,-1000.0,0.0002733,14]
[357528956,1744131060921,-32861.014248,0.0002733,2]
[357528957,1744131060931,-4911.34262278,0.0002734,2]
[357528958,1744131060941,-4911.34262278,0.0002734,2]
[357528959,1744131060950,-4911.34262278,0.0002734,2]
[357528960,1744131060959,-4911.34262278,0.0002734,2]
[357528961,1744131060968,-4911.34262278,0.0002734,2]
[357528962,1744131060978,-4911.34262278,0.0002734,2]
[357528963,1744131060992,-4911.34262278,0.0002734,2]
[357528964,1744131061002,-4911.34262278,0.0002734,2]
[357528965,1744131061013,-4911.34262278,0.0002734,2]
[357528966,1744131061023,-4911.34262278,0.0002734,2]
[357528967,1744131061033,-151.0,0.0002734,7]
[357528968,1744131061043,-151.0,0.0002734,7]
[357528969,1744131061054,-151.0,0.00027357,7]
[357528970,1744131061064,-274.427264,0.00027367,7]
[357528971,1744131061077,-500.0,0.00027373,2]
[357528972,1744131061087,-162.64322113,0.00027373,2]
[357528973,1744131061097,-605.70580113,0.00027373,2]
[357528974,1744131061107,-54768.35708,0.0002738,2]
[357528975,1744131061117,-151.52,0.0002738,2]
[357528976,1744131061127,-151.52,0.00027387,2]
[357528977,1744131061136,-171213.1860314,0.0002739,2]
[357528978,1744131061147,-85906.97727009,0.00027397,2]
[357528979,1744131061157,-500.0,0.00027397,2]
[357528980,1744131061167,-500.0,0.00027397,2]
[357528981,1744131061176,-500.0,0.00027397,2]
[357528982,1744131061185,-174.195817,0.00027397,2]
[357528983,1744131061196,-500.0,0.00027397,2]
[357528984,1744131061205,-632.287656,0.00027397,2]
[357528985,1744131061215,-662.496625,0.00027397,2]
[357528986,1744131061225,-169.801972,0.00027397,2]
[357528987,1744131061235,-500.0,0.00027397,2]
[357528988,1744131061244,-551.97153747,0.00027397,2]
[357528989,1744131061253,-500.0,0.00027397,2]
[357528990,1744131061265,-513.8413962,0.00027397,2]
[357528991,1744131061275,-530.45397558,0.00027397,2]
[357528992,1744131061285,-515.88363703,0.00027397,2]
[357528993,1744131061294,-500.0,0.00027397,2]
[357528994,1744131061304,-500.0,0.00027397,2]
[357528995,1744131061314,-525.97046778,0.00027397,2]
[357528996,1744131061323,-500.0,0.00027397,2]
[357528997,1744131061333,-500.0,0.00027397,2]
[357528998,1744131061343,-501.78628807,0.00027397,2]
[357528999,1744131061353,-500.0,0.00027397,2]
[357529000,1744131061362,-500.0,0.00027397,2]
[357529001,1744131061372,-500.0,0.00027397,2]
[357529002,1744131061382,-500.0,0.00027397,2]
[357529003,1744131061391,-500.0,0.00027397,2]
[357529004,1744131061401,-474.97393794,0.00027397,2]
[357529005,1744131061410,-219.99212431,0.00027397,2]
[357529006,1744131061420,-500.0,0.00027397,2]
[357529007,1744131061430,-502.31690258,0.00027397,2]
[357529008,1744131061440,-500.0,0.00027397,2]
[357529009,1744131061449,-500.0,0.00027397,2]
[357529010,1744131061459,-500.0,0.00027397,2]
[357529011,1744131061468,-500.0,0.00027397,2]
[357529012,1744131061478,-500.0,0.00027397,2]
[357529013,1744131061488,-500.0,0.00027397,2]
[357529014,1744131061498,-502.80543174,0.00027397,2]
[357529015,1744131061508,-521.99,0.00027397,2]
[357529016,1744131061521,-512.81848533,0.00027397,2]
[357529017,1744131061532,-1012.34,0.00027397,2]
[357529018,1744131061541,-500.0,0.00027397,2]
[357529019,1744131061551,-500.0,0.00027397,2]
[357529020,1744131061561,-500.0,0.00027397,2]
[357529021,1744131061570,-503.33289248,0.00027397,2]
[357529022,1744131061580,-500.0,0.00027397,2]
[357529023,1744131061589,-500.0,0.00027397,2]
[357529024,1744131061598,-500.0,0.00027397,2]
[357529025,1744131061608,-500.0,0.00027397,2]
[357529026,1744131061617,-500.0,0.00027397,2]
[357529027,1744131061626,-500.0,0.00027397,2]
[357529028,1744131061635,-500.0,0.00027397,2]
[357529029,1744131061645,-500.0,0.00027397,2]
[357529030,1744131061655,-500.0,0.00027397,2]
[357529031,1744131061664,-500.0,0.00027397,2]
[357529032,1744131061673,-500.0,0.00027397,2]
[357529033,1744131061682,-500.0,0.00027397,2]
[357529034,1744131061691,-500.0,0.00027397,2]
[357529035,1744131061701,-500.0,0.00027397,2]
[357529036,1744131061710,-500.0,0.00027397,2]
[357529037,1744131061719,-500.0,0.00027397,2]
[357529038,1744131061728,-1008.75,0.00027397,2]
[357529039,1744131061738,-500.0,0.00027397,2]
[357529040,1744131061747,-500.0,0.00027397,2]
[357529041,1744131061756,-500.0,0.00027397,2]
[357529042,1744131061767,-500.0,0.00027397,2]
[357529043,1744131061777,-500.0,0.00027397,2]
[357529044,1744131061786,-500.0,0.00027397,2]
[357529045,1744131061795,-572.69,0.00027397,2]
[357529046,1744131061804,-500.0,0.00027397,2]
[357529047,1744131061814,-938.36,0.00027397,2]
[357529048,1744131061823,-500.0,0.00027397,2]
[357529049,1744131061833,-500.0,0.00027397,2]
[357529050,1744131061842,-500.0,0.00027397,2]
[357529051,1744131061851,-189.98648224,0.00027397,2]
[357529052,1744131061861,-500.0,0.00027397,2]
[357529053,1744131061870,-500.0,0.00027397,2]
[357529054,1744131061880,-500.0,0.00027397,2]
[357529055,1744131061890,-500.0,0.00027397,2]
[357529056,1744131061899,-530.86127683,0.00027397,2]
[357529057,1744131061909,-500.0,0.00027397,2]
[357529058,1744131061918,-500.0,0.00027397,2]
[357529059,1744131061927,-637.29220921,0.00027397,2]
[357529060,1744131061936,-500.0,0.00027397,2]
[357529061,1744131061946,-799.85,0.00027397,2]
[357529062,1744131061955,-500.0,0.00027397,2]
[357529063,1744131061965,-500.0,0.00027397,2]
[357529064,1744131061974,-500.0,0.00027397,2]
[357529065,1744131061983,-500.0,0.00027397,2]
[357529066,1744131061993,-500.0,0.00027397,2]
[357529067,1744131062002,-500.0,0.00027397,2]
[357529068,1744131062013,-500.0,0.00027397,2]
[357529069,1744131062022,-500.0,0.00027397,2]
[357529070,1744131062031,-500.0,0.00027397,2]
[357529071,1744131062041,-500.0,0.00027397,2]
[357529072,1744131062051,-500.0,0.00027397,2]
[357529073,1744131062060,-500.0,0.00027397,2]
[357529074,1744131062072,-500.0,0.00027397,2]
[357529075,1744131062081,-500.0,0.00027397,2]
[357529076,1744131062091,-500.0,0.00027397,2]
[357529077,1744131062100,-500.0,0.00027397,2]
[357529078,1744131062110,-500.0,0.00027397,2]
[357529079,1744131062119,-500.0,0.00027397,2]
[357529080,1744131062129,-500.0,0.00027397,2]
[357529081,1744131062138,-500.0,0.00027397,2]
[357529082,1744131062147,-500.0,0.00027397,2]
[357529083,1744131062162,-500.0,0.00027397,2]
[357529084,1744131062172,-500.0,0.00027397,2]
[357529085,1744131062182,-500.0,0.00027397,2]
[357529086,1744131062270,-500.0,0.00027397,2]
[357529087,1744131062281,-500.0,0.00027397,2]
[357529088,1744131062290,-221.13703939,0.00027397,2]
[357529089,1744131062299,-500.0,0.00027397,2]
[357529090,1744131062308,-500.0,0.00027397,2]
[357529091,1744131062317,-544.64799343,0.00027397,2]
[357529092,1744131062327,-500.0,0.00027397,2]
[357529093,1744131062336,-500.0,0.00027397,2]
[357529094,1744131062345,-500.0,0.00027397,2]
[357529095,1744131062354,-500.0,0.00027397,2]
[357529096,1744131062363,-936.4,0.00027397,2]
[357529097,1744131062373,-500.0,0.00027397,2]
[357529098,1744131062382,-500.0,0.00027397,2]
[357529099,1744131062391,-500.0,0.00027397,2]
[357529100,1744131062401,-500.0,0.00027397,2]
[357529101,1744131062410,-500.0,0.00027397,2]
[357529102,1744131062420,-736.0,0.00027397,2]
[357529103,1744131062430,-500.0,0.00027397,2]
[357529104,1744131062440,-500.0,0.00027397,2]
[357529105,1744131062449,-500.0,0.00027397,2]
[357529106,1744131062458,-500.0,0.00027397,2]
[357529107,1744131062467,-500.0,0.00027397,2]
[357529108,1744131062477,-500.0,0.00027397,2]
[357529109,1744131062486,-500.0,0.00027397,2]
[357529110,1744131062496,-500.0,0.00027397,2]
[357529111,1744131062505,-500.0,0.00027397,2]
[357529112,1744131062516,-500.0,0.00027397,2]
[357529113,1744131062525,-500.0,0.00027397,2]
[357529114,1744131062534,-500.0,0.00027397,2]
[357529115,1744131062544,-500.0,0.00027397,2]
[357529116,1744131062553,-550.93,0.00027397,2]
[357529117,1744131062563,-500.0,0.00027397,2]
[357529118,1744131062572,-500.0,0.00027397,2]
[357529119,1744131062581,-500.0,0.00027397,2]
[357529120,1744131062590,-500.0,0.00027397,2]
[357529121,1744131062599,-500.0,0.00027397,2]
[357529122,1744131062609,-500.0,0.00027397,2]
[357529123,1744131062618,-500.0,0.00027397,2]
[357529124,1744131062627,-543.50356787,0.00027397,2]
[357529125,1744131062636,-500.0,0.00027397,2]
[357529126,1744131062645,-500.0,0.00027397,2]
[357529127,1744131062654,-509.16126194,0.00027397,2]
[357529128,1744131062663,-621.25,0.00027397,2]
[357529129,1744131062672,-500.0,0.00027397,2]
[357529130,1744131062681,-500.0,0.00027397,2]
[357529131,1744131062690,-297.90896505,0.00027397,2]
[357529132,1744131062699,-500.0,0.00027397,2]
[357529133,1744131062708,-500.0,0.00027397,2]
[357529134,1744131062717,-511.29642185,0.00027397,2]
[357529135,1744131062727,-500.0,0.00027397,2]
[357529136,1744131062736,-500.0,0.00027397,2]
[357529137,1744131062745,-500.0,0.00027397,2]
[357529138,1744131062754,-500.0,0.00027397,2]
[357529139,1744131062765,-500.0,0.00027397,2]
[357529140,1744131062774,-500.0,0.00027397,2]
[357529141,1744131062784,-500.0,0.00027397,2]
[357529142,1744131062793,-500.0,0.00027397,2]
[357529143,1744131062802,-500.0,0.00027397,2]
[357529144,1744131062811,-509.4317633,0.00027397,2]
[357529145,1744131062821,-500.0,0.00027397,2]
[357529146,1744131062830,-1509.4,0.00027397,2]
[357529147,1744131062839,-500.0,0.00027397,2]
[357529148,1744131062848,-500.0,0.00027397,2]
[357529149,1744131062857,-500.0,0.00027397,2]
[357529150,1744131062867,-768.18,0.00027397,2]
[357529151,1744131062876,-500.0,0.00027397,2]
[357529152,1744131062885,-500.0,0.00027397,2]
[357529153,1744131062895,-500.0,0.00027397,2]
[357529154,1744131062904,-500.0,0.00027397,2]
[357529155,1744131062913,-485.66545746,0.00027397,2]
[357529156,1744131062922,-500.0,0.00027397,2]
[357529157,1744131062932,-506.19219559,0.00027397,2]
[357529158,1744131062942,-500.0,0.00027397,2]
[357529159,1744131062951,-500.0,0.00027397,2]
[357529160,1744131062961,-500.0,0.00027397,2]
[357529161,1744131062971,-500.0,0.00027397,2]
[357529162,1744131062980,-500.0,0.00027397,2]
[357529163,1744131062990,-500.0,0.00027397,2]
[357529164,1744131063000,-500.0,0.00027397,2]
[357529165,1744131063009,-500.0,0.00027397,2]
[357529166,1744131063021,-596.55997704,0.00027397,2]
[357529167,1744131063031,-500.0,0.00027397,2]
[357529168,1744131063040,-734.29,0.00027397,2]
[357529169,1744131063054,-500.0,0.00027397,2]
[357529170,1744131063064,-500.0,0.00027397,2]
[357529171,1744131063082,-500.0,0.00027397,2]
[357529172,1744131063092,-555.18711205,0.00027397,2]
[357529173,1744131063102,-500.0,0.00027397,2]
[357529174,1744131063112,-500.0,0.00027397,2]
[357529175,1744131063122,-500.0,0.00027397,2]
[357529176,1744131063132,-500.0,0.00027397,2]
[357529177,1744131063142,-500.0,0.00027397,2]
[357529178,1744131063154,-500.0,0.00027397,2]
[357529179,1744131063164,-707.17,0.00027397,2]
[357529180,1744131063174,-500.0,0.00027397,2]
[357529181,1744131063184,-500.0,0.00027397,2]
[357529182,1744131063194,-500.0,0.00027397,2]
[357529183,1744131063204,-150.0,0.00027397,2]
[357529184,1744131063213,-631.91305097,0.00027397,2]
[357529185,1744131063223,-500.0,0.00027397,2]
[357529186,1744131063233,-515.16829236,0.00027397,2]
[357529187,1744131063243,-500.0,0.00027397,2]
[357529188,1744131063253,-500.0,0.00027397,2]
[357529189,1744131063264,-2792.13871101,0.00027397,2]
[357529190,1744131063274,-500.0,0.00027397,2]
[357529191,1744131063283,-500.0,0.00027397,2]
[357529192,1744131063293,-509.41,0.00027397,2]
[357529193,1744131063303,-500.0,0.00027397,2]
[357529194,1744131063312,-500.0,0.00027397,2]
[357529195,1744131063322,-500.0,0.00027397,2]
[357529196,1744131063331,-500.0,0.00027397,2]
[357529197,1744131063341,-500.0,0.00027397,2]
[357529198,1744131063351,-1220.84,0.00027397,2]
[357529199,1744131063361,-500.0,0.00027397,2]
[357529200,1744131063371,-500.0,0.00027397,2]
[357529201,1744131063381,-500.0,0.00027397,2]
[357529202,1744131063391,-500.0,0.00027397,2]
[357529203,1744131063402,-500.0,0.00027397,2]
[357529204,1744131063411,-500.0,0.00027397,2]
[357529205,1744131063421,-500.0,0.00027397,2]
[357529206,1744131063431,-500.0,0.00027397,2]
[357529207,1744131063440,-500.0,0.00027397,2]
[357529208,1744131063450,-500.0,0.00027397,2]
[357529209,1744131063461,-500.0,0.00027397,2]
[357529210,1744131063470,-500.0,0.00027397,2]
[357529211,1744131063480,-500.0,0.00027397,2]
[357529212,1744131063490,-500.0,0.00027397,2]
[357529213,1744131063500,-500.0,0.00027397,2]
[357529214,1744131063509,-500.0,0.00027397,2]
[357529215,1744131063521,-500.0,0.00027397,2]
[357529216,1744131063531,-500.0,0.00027397,2]
[357529217,1744131063541,-500.0,0.00027397,2]
[357529218,1744131063551,-506.04256336,0.00027397,2]
[357529219,1744131063561,-513.44011533,0.00027397,2]
[357529220,1744131063571,-528.02762698,0.00027397,2]
[357529221,1744131063581,-500.0,0.00027397,2]
[357529222,1744131063591,-500.0,0.00027397,2]
[357529223,1744131063605,-500.0,0.00027397,2]
[357529224,1744131063615,-500.0,0.00027397,2]
[357529225,1744131063625,-500.0,0.00027397,2]
[357529226,1744131063635,-500.0,0.00027397,2]
[357529227,1744131063645,-500.0,0.00027397,2]
[357529228,1744131063655,-222.35963235,0.00027397,2]
[357529229,1744131063665,-500.0,0.00027397,2]
[357529230,1744131063675,-500.0,0.00027397,2]
[357529231,1744131063685,-500.0,0.00027397,2]
[357529232,1744131063695,-500.0,0.00027397,2]
[357529233,1744131063705,-500.0,0.00027397,2]
[357529234,1744131063715,-500.0,0.00027397,2]
[357529235,1744131063724,-500.50081903,0.00027397,2]
[357529236,1744131063736,-545.03,0.00027397,2]
[357529237,1744131063746,-500.0,0.00027397,2]
[357529238,1744131063756,-500.0,0.00027397,2]
[357529239,1744131063767,-219.56964371,0.00027397,2]
[357529240,1744131063777,-500.0,0.00027397,2]
[357529241,1744131063786,-500.0,0.00027397,2]
[357529242,1744131063795,-500.0,0.00027397,2]
[357529243,1744131063805,-500.0,0.00027397,2]
[357529244,1744131063814,-500.0,0.00027397,2]
[357529245,1744131063824,-531.2459873,0.00027397,2]
[357529246,1744131063833,-500.0,0.00027397,2]
[357529247,1744131063843,-466.30747648,0.00027397,2]
[357529248,1744131063853,-522.30694297,0.00027397,2]
[357529249,1744131063863,-500.0,0.00027397,2]
[357529250,1744131063872,-523.1232364,0.00027397,2]
[357529251,1744131063882,-500.0,0.00027397,2]
[357529252,1744131063892,-559.69514305,0.00027397,2]
[357529253,1744131063902,-540.47363131,0.00027397,2]
[357529254,1744131063912,-533.12012047,0.00027397,2]
[357529255,1744131063921,-500.0,0.00027397,2]
[357529256,1744131063932,-523.11506746,0.00027397,2]
[357529257,1744131063942,-500.0,0.00027397,2]
[357529258,1744131063951,-500.0,0.00027397,2]
[357529259,1744131063962,-500.0,0.00027397,2]
[357529260,1744131063971,-500.0,0.00027397,2]
[357529261,1744131063981,-500.0,0.00027397,2]
[357529262,1744131063990,-500.0,0.00027397,2]
[357529263,1744131064000,-601.22316638,0.00027397,2]
[357529264,1744131064010,-500.0,0.00027397,2]
[357529265,1744131064021,-500.0,0.00027397,2]
[357529266,1744131064031,-1019.54,0.00027397,2]
[357529267,1744131064040,-1644.68,0.00027397,2]
[357529268,1744131064050,-538.21,0.00027397,2]
[357529269,1744131064060,-199.59801217,0.00027397,2]
[357529270,1744131064076,-500.0,0.00027397,2]
[357529271,1744131064086,-500.0,0.00027397,2]
[357529272,1744131064095,-296.61166966,0.00027397,2]
[357529273,1744131064106,-500.0,0.00027397,2]
[357529274,1744131064115,-500.0,0.00027397,2]
[357529275,1744131064125,-734.05,0.00027397,2]
[357529276,1744131064134,-231.37079049,0.00027397,2]
[357529277,1744131064144,-500.0,0.00027397,2]
[357529278,1744131064155,-519.50730887,0.00027397,2]
[357529279,1744131064164,-500.0,0.00027397,2]
[357529280,1744131064173,-1425.74,0.00027397,2]
[357529281,1744131064182,-528.53156115,0.00027397,2]
[357529282,1744131064192,-500.0,0.00027397,2]
[357529283,1744131064201,-500.0,0.00027397,2]
[357529284,1744131064211,-500.0,0.00027397,2]
[357529285,1744131064220,-542.11945366,0.00027397,2]
[357529286,1744131064230,-509.40216817,0.00027397,2]
[357529287,1744131064239,-500.0,0.00027397,2]
[357529288,1744131064249,-500.0,0.00027397,2]
[357529289,1744131064259,-1187.81,0.00027397,2]
[357529290,1744131064271,-500.0,0.00027397,2]
[357529291,1744131064280,-500.0,0.00027397,2]
[357529292,1744131064290,-500.0,0.00027397,2]
[357529293,1744131064299,-500.0,0.00027397,2]
[357529294,1744131064310,-500.0,0.00027397,2]
[357529295,1744131064319,-514.92376516,0.00027397,2]
[357529296,1744131064329,-500.0,0.00027397,2]
[357529297,1744131064339,-1273.1,0.00027397,2]
[357529298,1744131064348,-500.0,0.00027397,2]
[357529299,1744131064358,-500.0,0.00027397,2]
[357529300,1744131064368,-500.0,0.00027397,2]
[357529301,1744131064378,-1048.09,0.00027397,2]
[357529302,1744131064387,-503.17735035,0.00027397,2]
[357529303,1744131064397,-500.0,0.00027397,2]
[357529304,1744131064406,-508.8977469,0.00027397,2]
[357529305,1744131064416,-500.0,0.00027397,2]
[357529306,1744131064425,-521.13666003,0.00027397,2]
[357529307,1744131064434,-531.84,0.00027397,2]
[357529308,1744131064443,-500.0,0.00027397,2]
[357529309,1744131064453,-500.0,0.00027397,2]
[357529310,1744131064462,-541.8163585,0.00027397,2]
[357529311,1744131064472,-500.0,0.00027397,2]
[357529312,1744131064481,-500.0,0.00027397,2]
[357529313,1744131064491,-500.0,0.00027397,2]
[357529314,1744131064500,-500.0,0.00027397,2]
[357529315,1744131064509,-1739.87,0.00027397,2]
[357529316,1744131064520,-500.0,0.00027397,2]
[357529317,1744131064529,-500.0,0.00027397,2]
[357529318,1744131064538,-500.0,0.00027397,2]
[357529319,1744131064547,-500.0,0.00027397,2]
[357529320,1744131064557,-686.22,0.00027397,2]
[357529321,1744131064566,-500.0,0.00027397,2]